[Event "DFMM-LV 2023"]
[Site "Braunfels"]
[Date "2023.06.09"]
[Round "3.32"]
[White "Grosse-Honebrink, Brigitte"]
[Black "Albayrak, Aylin"]
[Result "1-0"]
[Annotator "NA RC COMBH"]
[ECO "E61"]
[WhiteElo "1891"]
[BlackElo "1690"]
[PlyCount "99"]
[EventDate "2023.06.09"]
[EventType "team-tourn"]
[EventCountry "GER"]
[SourceTitle "playchess.com"]
[Source "ChessBase"]
[SourceQuality "1"]
[TimeControl "40/5400+30:1800+30"]

1. d4 {[%emt 0:00:05]} Nf6 {[%emt 0:00:24]} 2. Nf3 {[%emt 0:00:07]} g6 {[%emt 0:00:09]} 3. Bf4 {[%emt 0:00:07]} Bg7 {[%emt 0:00:16]} 4. h3 {[%emt 0:00:16]} O-O {[%emt 0:01:02]} 5. e3 {[%emt 0:00:05]} d6 {[%emt 0:01:18]} 6. Be2 {[%emt 0:00:07]} Nbd7 {[%emt 0:00:58]} 7. O-O {[%emt 0:00:11]} b6 {[%emt 0:00:37]} 8. c4 {[%emt 0:01:26]} Bb7 {[%emt 0:00:30]} 9. Nc3 {[%emt 0:00:57]} c5 {[%emt 0:01:25]} 10. d5 {[%emt 0:03:52]} Ne8 {[%emt 0:03:16]} 11. Rc1 {[%emt 0:01:01]} Nc7 {[%emt 0:02:21]} 12. a4 {[%emt 0:04:05]} Ne5 {[%emt 0:03:40]} 13. b3 {[%emt 0:04:15]} Qe8 {[%emt 0:04:49]} 14. Qd2 {[%emt 0:04:16]} h6 {[%emt 0:06:12]} 15. h4 {[%emt 0:03:20]} Rd8 {[%emt 0:07:49]} 16. e4 {[%emt 0:03:12]} Kh7 {[%emt 0:01:06]} 17. Bg3 {[%emt 0:08:01]} Bc8 {[%emt 0:01:34]} 18. Nh2 {[%emt 0:03:55]} f6 {[%emt 0:08:59]} 19. f4 {[%emt 0:02:43]} Nf7 {[%emt 0:02:18]} 20. Nf3 {[%emt 0:07:26]} Bg4 {[%emt 0:04:31]} 21. Ng5+ {[%emt 0:09:56]} fxg5 {[%emt 0:01:43]} 22. Bxg4 {[%emt 0:00:13]} gxf4 {[%emt 0:01:33]} 23. Bxf4 {[%emt 0:01:12]} Ne5 {[%emt 0:03:22]} 24. Be2 {[%emt 0:04:15]} e6 {[%emt 0:02:49]} 25. Bg3 {[%emt 0:06:01]} Qe7 {[%emt 0:01:57]} 26. Nb5 {[%emt 0:05:25]} Nxb5 {[%emt 0:02:11]} 27. axb5 {[%emt 0:00:10]} Bf6 {[%emt 0:06:43]} 28. Qe1 {[%emt 0:06:48]} exd5 {[%emt 0:03:42]} 29. exd5 {[%emt 0:00:35]} Rde8 {[%emt 0:03:32]} 30. h5 {[%emt 0:02:11]} g5 {[%emt 0:07:16]} 31. Qd2 {[%emt 0:02:14]} Qg7 {[%emt 0:03:09]} 32. Bd1 {[%emt 0:06:54]} Kh8 {[%emt 0:01:12]} 33. Bc2 {[%emt 0:01:32]} Re7 {[%emt 0:06:40]} 34. Rce1 {[%emt 0:02:15]} Rfe8 {[%emt 0:00:49]} 35. Rf5 {[%emt 0:01:49]} Ng4 {[%emt 0:02:40]} 36. Rxe7 {[%emt 0:02:04]} Qxe7 {[%emt 0:01:21]} 37. Rf1 {[%emt 0:02:27]} Bd4+ {[%emt 0:01:05]} 38. Kh1 {[%emt 0:00:01]} Be5 {[%emt 0:01:42]} 39. Qd3 {[%emt 0:02:14]} Nf6 {[%emt 0:01:29]} 40. Bxe5 {[%emt 0:01:35]} Qxe5 {[%emt 0:01:03]} 41. Rxf6 {[%emt 0:01:15]} Qe1+ {[%emt 0:04:57]} 42. Rf1 {[%emt 0:01:21]} Qe7 {[%emt 0:04:11]} 43. Qg6 {[%emt 0:01:55]} Rd8 {[%emt 0:02:46]} 44. Qxh6+ {[%emt 0:00:22]} Kg8 {[%emt 0:00:14]} 45. Qg6+ {[%emt 0:00:55]} Qg7 {[%emt 0:01:11]} 46. Rf7 {[%emt 0:03:06]} (46. Qe6+ $142 Kh8 47. h6 Qd4 48. g3 Qa1 49. Rxa1 Rf8 50. Qe7 Rf7 51. Qe8+ Rf8 52. Qxf8#) 46... Qxg6 {[%emt 0:02:31]} 47. Bxg6 {[%emt 0:00:14]} Re8 {[%emt 0:04:55]} 48. Rd7 {[%emt 0:00:36]} Re3 {[%emt 0:00:34]} 49. h6 {[%emt 0:00:43]} g4 {[%emt 0:02:12]} 50. Rd8+ {[%emt 0:00:17]} 1-0

[Event "DFMM-LV 2023"]
[Site "Braunfels"]
[Date "2023.06.09"]
[Round "3.33"]
[White "Hund, Sarah"]
[Black "Krasnopeyeva, Julia"]
[Result "1-0"]
[Annotator "TA"]
[ECO "B22"]
[WhiteElo "1977"]
[BlackElo "1895"]
[PlyCount "46"]
[EventDate "2023.06.09"]
[EventType "team-tourn"]
[EventCountry "GER"]
[SourceTitle "playchess.com"]
[Source "ChessBase"]
[SourceQuality "1"]
[TimeControl "40/5400+30:1800+30"]

{[%evp 13,46,45,45,46,39,50,60,11,29,20,53,44,207,187,194,189,205,202,334,338,336,252,1346,1346,1554,1164,1118,1026,1086,1060,2595,1676,29991,29992,29992]} 1. e4 {[%emt 0:00:03]} c5 {[%emt 0:00:07]} 2. c3 {[%emt 0:00:10]} e6 {[%emt 0:01:59]} 3. d4 {[%emt 0:01:00]} d5 {[%emt 0:00:23]} 4. exd5 {[%emt 0:00:55]} Qxd5 {[%emt 0:01:11]} 5. Nf3 {[%emt 0:00:39]} Nc6 {[%emt 0:01:06]} 6. Na3 {[%emt 0:04:17]} cxd4 {[%emt 0:00:52]} 7. Nb5 {[%emt 0:00:55]} Bd6 $1 {[%emt 0:05:59] [#]} (7... Qe4+ $2 8. Be2 Rb8 9. O-O $16 (9. Nbxd4 Be7 $16) (9. Nfxd4 Bd7 $16)) 8. Bc4 $1 {[%emt 0:08:05][%mdl 64] Decoy. B22: Sicilian: 2 c3.} Qe4+ {[%emt 0:00:38] [#]} (8... Qxc4 $2 9. Nxd6+ Kf8 10. Nxc4 $18) 9. Be3 $1 {[%emt 0:00:45]} Bb8 {[%emt 0:03:00]} (9... Bf4 $2 10. Bd3 $18 (10. Nbxd4 Bxe3 11. Bd3 Bxf2+ 12. Kxf2 Qd5 $15) (10. Nbxd4 Bxe3 11. Bd3 Bxf2+ 12. Kxf2 Qd5 $15)) 10. cxd4 {[%emt 0:01:54]} (10. Bd3 $14 {might be stronger.} Qd5 11. c4 (11. Bxd4 Nxd4 12. cxd4 Nf6 $11) (11. Nbxd4 Bd7 $14) (11. Nfxd4 Qxg2 12. Kd2 g6 $11) (11. cxd4 Nf6 $14)) 10... Nf6 {[%emt 0:02:47]} 11. O-O {[%emt 0:03:23] [#]} Nd5 $146 {[%emt 0:03:59]} ({Predecessor:} 11... O-O 12. Re1 a6 13. Nc3 Qf5 14. h3 Nb4 15. Bb3 b5 16. a3 Nbd5 17. Nxd5 Nxd5 {½-½ Hebert,J (2381)-Vibbert,S (2312) Manchester 05 2015 (3)}) 12. Re1 {[%emt 0:09:19] aiming for Bg5.} Nxe3 {[%emt 0:07:14] This move loses the game for Black.} ({Better is} 12... O-O $1 $14) 13. Rxe3 $18 {[%emt 0:01:08]} ({Not} 13. fxe3 O-O $14) 13... Qf4 {[%emt 0:03:01]} 14. g3 $36 {[%emt 0:02:50][%mdl 2048] White is really pushing.} Qg4 {[%emt 0:00:34] [#]} 15. h3 $1 {[%emt 0:02:38]} Qxh3 {[%emt 0:03:09] [#]} (15... Qg6 $142 16. d5 Bxg3) 16. d5 $1 {[%emt 0:01:41] Active counter play!} Qg4 {[%emt 0:06:14]} 17. Rc1 {[%emt 0:08:12][%cal Ba1c1,Bc1c8,Bc8h8][%mdl 32]} Na5 {[%emt 0:03:26] [#]} (17... Bxg3 18. Ne1 (18. fxg3 Qxg3+ 19. Kf1 Na5 $18) 18... Qxd1 19. Rxd1 Bf4) 18. dxe6 $1 {[%emt 0:03:00]} fxe6 {[%emt 0:03:16] [#]} (18... Bxe6 19. Bxe6) 19. Bxe6 $1 {[%emt 0:05:13][%mdl 512]} Bxe6 {[%emt 0:00:26]} 20. Rc8+ {[%emt 0:00:21][%mdl 64] Skewer} Ke7 {[%emt 0:00:15]} 21. Rxh8 {[%emt 0:00:39] Intending Qd8+ and mate.} Bf4 {[%emt 0:05:38]} 22. Rxe6+ {[%emt 0:01:24]} Kxe6 {[%emt 0:01:58]} 23. Nfd4+ {[%emt 0:00:43][%mdl 64] Discovered Attack. Excellent horsemanship.} Kd5 {[%emt 0:44:48] Magnificent play by Hund!   Weighted Error Value: White=0.15 (very precise) /Black=0.87.  Loses game:     	---       	Black=1      Missed win:     	---       	---        Mistake:       	White=1     	Black=2      Inaccurate:     	---       	Black=1      OK:         	White=3     	Black=4      Best:        	White=2     	---        Strong:       	White=2     	---        Brilliant:      	---       	---} 1-0

[Event "DFMM-LV 2023"]
[Site "Braunfels"]
[Date "2023.06.09"]
[Round "3.34"]
[White "Mader, Lena"]
[Black "Novikova, Margarita"]
[Result "1/2-1/2"]
[Annotator "TA"]
[ECO "A12"]
[WhiteElo "1778"]
[BlackElo "1985"]
[PlyCount "37"]
[EventDate "2023.06.09"]
[EventType "team-tourn"]
[EventCountry "GER"]
[SourceTitle "playchess.com"]
[Source "ChessBase"]
[SourceQuality "1"]
[TimeControl "40/5400+30:1800+30"]

{[%evp 14,37,11,0,64,20,62,9,0,0,0,-20,-10,-27,-20,-20,-9,-8,-12,-19,-7,-4,-18,-20,0,0]} 1. c4 {[%emt 0:00:02]} Nf6 {[%emt 0:01:09]} 2. g3 {[%emt 0:00:09]} d5 {[%emt 0:00:45]} 3. Bg2 {[%emt 0:00:21]} c6 {[%emt 0:00:16]} 4. b3 {[%emt 0:00:37]} Bf5 {[%emt 0:00:31]} 5. Bb2 {[%emt 0:00:54]} e6 {[%emt 0:00:18]} 6. Nf3 {[%emt 0:02:02]} Nbd7 {[%emt 0:04:25] 6...h6 is the fancy move.} 7. O-O {[%emt 0:01:17]} h6 {[%emt 0:05:44]} 8. d3 {[%emt 0:01:28]} Qc7 {[%emt 0:01:45] A12: English Opening: 1...c6 with b3 by White.} (8... Be7 $11) 9. Nc3 {[%emt 0:00:47]} (9. Nbd2 {seems wilder.} Bc5 10. cxd5 exd5 11. e4) 9... Be7 {[%emt 0:03:38]} 10. Rc1 {[%emt 0:01:31]} (10. cxd5 $14 exd5 11. e4 dxe4 12. dxe4) 10... dxc4 $11 {[%emt 0:01:34]} 11. bxc4 {[%emt 0:00:34] [#]} e5 $146 {[%emt 0:02:44]} ({Predecessor:} 11... O-O 12. Qd2 Rad8 13. h3 Bh7 14. Rb1 e5 15. Qc2 Rfe8 16. Nd2 Nc5 17. Ba3 b6 18. Bxc5 Bxc5 {½-½ Hros,R (1915)-Sedlakova,I (2065) SVK-chT1E 1213 2012 (9.5)}) 12. Nd2 {[%emt 0:16:39]} O-O {[%emt 0:04:42]} 13. Nde4 {[%emt 0:02:02]} Rad8 {[%emt 0:06:45]} 14. Qb3 {[%emt 0:03:23] The position is equal.} Nc5 {[%emt 0:03:41]} 15. Nxc5 {[%emt 0:00:38]} Bxc5 {[%emt 0:00:02]} 16. Ba3 {[%emt 0:02:16]} Nd7 {[%emt 0:05:58]} 17. Ne4 {[%emt 0:03:58]} Bxe4 {[%emt 0:01:32]} 18. Bxe4 {[%emt 0:00:11]} Qd6 {[%emt 0:02:41]} (18... f5 $5 {[%cal Rf5e4]} 19. Bg2 Kh7 $11) 19. Bb2 {[%emt 0:01:51] Weighted Error Value: White=0.18 (very precise) /Black=0.18 (very precise)} 1/2-1/2

[Event "DFMM-LV 2023"]
[Site "Braunfels"]
[Date "2023.06.09"]
[Round "3.36"]
[White "Mueller, Riyanna"]
[Black "Haug, Mara"]
[Result "1-0"]
[Annotator "NA RC COMBH"]
[ECO "B22"]
[WhiteElo "1687"]
[BlackElo "1754"]
[PlyCount "43"]
[EventDate "2023.06.09"]
[EventType "team-tourn"]
[EventCountry "GER"]
[SourceTitle "playchess.com"]
[Source "ChessBase"]
[SourceQuality "1"]
[TimeControl "40/5400+30:1800+30"]

1. e4 {[%emt 0:00:03]} c5 {[%emt 0:00:09]} 2. c3 {[%emt 0:00:18]} d5 {[%emt 0:00:11]} 3. exd5 {[%emt 0:00:25]} Nf6 {[%emt 0:00:08]} 4. Bb5+ {[%emt 0:01:45]} Nbd7 {[%emt 0:01:39]} 5. c4 {[%emt 0:04:21]} a6 {[%emt 0:00:10]} 6. Ba4 {[%emt 0:10:13]} b5 {[%emt 0:03:24]} 7. cxb5 {[%emt 0:03:58]} Nb6 {[%emt 0:11:46]} 8. Nc3 {[%emt 0:05:19]} Nfxd5 {[%emt 0:04:49]} 9. bxa6+ {[%emt 0:10:01]} Bd7 {[%emt 0:00:16]} 10. Nge2 {[%emt 0:10:40]} Nxa4 {[%emt 0:04:04]} 11. Nxa4 {[%emt 0:01:31]} e5 {[%emt 0:04:18]} 12. O-O {[%emt 0:02:20]} Be7 {[%emt 0:09:27]} 13. f4 {[%emt 0:09:18]} exf4 {[%emt 0:09:42]} 14. d4 {[%emt 0:02:57]} Qa5 {[%emt 0:13:38]} 15. Nxc5 {[%emt 0:03:23]} Bxc5 {[%emt 0:00:42]} 16. dxc5 {[%emt 0:00:43]} Qxc5+ {[%emt 0:00:20]} 17. Kh1 {[%emt 0:00:07]} Ne3 {[%emt 0:04:18]} 18. Bxe3 {[%emt 0:00:33]} fxe3 {[%emt 0:00:27]} 19. Qd3 {[%emt 0:07:22]} Bc6 {[%emt 0:08:38]} 20. Rac1 {[%emt 0:01:23]} Qb6 {[%emt 0:01:02]} 21. Nd4 {[%emt 0:02:14]} Bd7 {[%emt 0:05:36]} 22. Qe4+ {[%emt 0:00:28]} 1-0

[Event "DFMM-LV 2023"]
[Site "Braunfels"]
[Date "2023.06.09"]
[Round "3.37"]
[White "Wellenreich, Jenni"]
[Black "Richter, Johanna"]
[Result "1/2-1/2"]
[Annotator "NA RC COMBH"]
[ECO "E85"]
[WhiteElo "1828"]
[BlackElo "1470"]
[PlyCount "84"]
[EventDate "2023.06.09"]
[EventType "team-tourn"]
[EventCountry "GER"]
[SourceTitle "playchess.com"]
[Source "ChessBase"]
[SourceQuality "1"]
[TimeControl "40/5400+30:1800+30"]

1. d4 {[%emt 0:00:02]} Nf6 {[%emt 0:00:05]} 2. c4 {[%emt 0:00:07]} g6 {[%emt 0:00:03]} 3. Nc3 {[%emt 0:00:19]} Bg7 {[%emt 0:00:05]} 4. e4 {[%emt 0:00:32]} d6 {[%emt 0:00:05]} 5. f3 {[%emt 0:00:26]} O-O {[%emt 0:00:07]} 6. Be3 {[%emt 0:00:30]} Nbd7 {[%emt 0:00:43]} 7. Qd2 {[%emt 0:02:57]} e5 {[%emt 0:02:01]} 8. Nge2 {[%emt 0:01:36]} a6 {[%emt 0:04:26]} 9. d5 {[%emt 0:04:06]} b6 {[%emt 0:04:53]} 10. Ng3 {[%emt 0:03:50]} Ne8 {[%emt 0:06:18]} 11. O-O-O {[%emt 0:12:12]} Nc5 {[%emt 0:02:34]} 12. Bh6 {[%emt 0:01:54]} Bd7 {[%emt 0:02:11]} 13. h4 {[%emt 0:05:30]} Na4 {[%emt 0:10:08]} 14. Bxg7 {[%emt 0:05:32]} Kxg7 {[%emt 0:00:11]} 15. Nxa4 {[%emt 0:02:23]} Bxa4 {[%emt 0:00:06]} 16. b3 {[%emt 0:00:16]} Bd7 {[%emt 0:00:06]} 17. h5 {[%emt 0:01:59]} Nf6 {[%emt 0:02:27]} 18. hxg6 {[%emt 0:04:15]} fxg6 {[%emt 0:00:40]} 19. Qh6+ {[%emt 0:00:59]} Kg8 {[%emt 0:00:56]} 20. Ne2 {[%emt 0:04:55]} Qe7 {[%emt 0:04:27]} 21. Kb1 {[%emt 0:04:20]} b5 {[%emt 0:03:55]} 22. Nc1 {[%emt 0:00:57]} b4 {[%emt 0:01:08]} 23. Qe3 {[%emt 0:04:14]} a5 {[%emt 0:05:50]} 24. Bd3 {[%emt 0:06:04]} Rf7 {[%emt 0:06:34]} 25. g3 {[%emt 0:02:07]} Nh5 {[%emt 0:05:21]} 26. Rdg1 {[%emt 0:01:07]} Qf8 {[%emt 0:03:48]} 27. Be2 {[%emt 0:00:41]} Qe7 {[%emt 0:07:17]} 28. Qd2 {[%emt 0:01:33]} Nf6 {[%emt 0:07:16]} 29. Nd3 {[%emt 0:01:08]} Qf8 {[%emt 0:04:53]} 30. Rc1 {[%emt 0:01:21]} Nh5 {[%emt 0:03:39]} 31. Rhg1 {[%emt 0:00:44]} Nf6 {[%emt 0:02:33]} 32. c5 {[%emt 0:02:45]} Qb8 {[%emt 0:06:00]} 33. Nb2 {[%emt 0:05:13]} Bb5 {[%emt 0:02:37]} 34. cxd6 {[%emt 0:02:11]} cxd6 {[%emt 0:00:15]} 35. Bxb5 {[%emt 0:01:45]} Qxb5 {[%emt 0:00:06]} 36. Rc6 {[%emt 0:00:34]} Ra6 {[%emt 0:02:47]} 37. Rxa6 {[%emt 0:01:57]} Qxa6 {[%emt 0:00:02]} 38. Nc4 {[%emt 0:00:30]} Nd7 {[%emt 0:01:35]} 39. Qe3 {[%emt 0:02:56]} Nc5 {[%emt 0:01:07]} 40. f4 {[%emt 0:02:59]} exf4 {[%emt 0:00:36]} 41. gxf4 {[%emt 0:41:34]} Re7 {[%emt 0:31:09]} 42. e5 Nd7 1/2-1/2

[Event "DFMM-LV 2023"]
[Site "Braunfels"]
[Date "2023.06.09"]
[Round "3.38"]
[White "Zemke, Christine"]
[Black "Schneider, Birgit"]
[Result "1/2-1/2"]
[Annotator "NA RC COMBH"]
[ECO "B13"]
[WhiteElo "1682"]
[BlackElo "1855"]
[PlyCount "45"]
[EventDate "2023.06.09"]
[EventType "team-tourn"]
[EventCountry "GER"]
[SourceTitle "playchess.com"]
[Source "ChessBase"]
[SourceQuality "1"]
[TimeControl "40/5400+30:1800+30"]

1. d4 {[%emt 0:00:02]} d5 {[%emt 0:00:06]} 2. e3 {[%emt 0:00:14]} c5 {[%emt 0:01:18]} 3. c3 {[%emt 0:01:16]} cxd4 {[%emt 0:01:33]} 4. exd4 {[%emt 0:00:50]} Nf6 {[%emt 0:02:01]} 5. Bd3 {[%emt 0:01:31]} Nc6 {[%emt 0:02:29]} 6. Bf4 {[%emt 0:03:27]} e6 {[%emt 0:04:05]} 7. Nf3 {[%emt 0:02:38]} Bd6 {[%emt 0:05:41]} 8. Bxd6 {[%emt 0:11:05]} Qxd6 {[%emt 0:00:45]} 9. Qe2 {[%emt 0:00:57]} O-O {[%emt 0:08:27]} 10. Ne5 {[%emt 0:02:41]} b6 {[%emt 0:05:19]} 11. Nd2 {[%emt 0:02:22]} Bb7 {[%emt 0:02:52]} 12. O-O {[%emt 0:00:52]} Qc7 {[%emt 0:07:55]} 13. f4 {[%emt 0:05:54]} Ne7 {[%emt 0:07:25]} 14. Rae1 {[%emt 0:08:37]} Nf5 {[%emt 0:03:28]} 15. Qf3 {[%emt 0:04:39]} Nd6 {[%emt 0:05:17]} 16. Qh3 {[%emt 0:22:20]} Nfe4 {[%emt 0:05:23]} 17. Ndf3 {[%emt 0:02:14]} Rae8 {[%emt 0:07:13]} 18. Ng5 {[%emt 0:01:10]} h6 {[%emt 0:03:11]} 19. Ngf3 {[%emt 0:03:29]} f5 {[%emt 0:05:18]} 20. Re2 {[%emt 0:09:43]} Bc6 {[%emt 0:01:59]} 21. Nxc6 {[%emt 0:00:35]} Qxc6 {[%emt 0:00:13]} 22. Ne5 {[%emt 0:00:10]} Qc7 {[%emt 0:19:32]} 23. Rfe1 1/2-1/2

[Event "DFMM-LV 2023"]
[Site "Braunfels"]
[Date "2023.06.09"]
[Round "3.40"]
[White "Perovic-Ottstadt, Sanja"]
[Black "Landenberger, Anja Kathrin"]
[Result "1/2-1/2"]
[Annotator "NA RC COMBH"]
[ECO "D12"]
[WhiteElo "1443"]
[BlackElo "1740"]
[PlyCount "37"]
[EventDate "2023.06.09"]
[EventType "team-tourn"]
[EventCountry "GER"]
[SourceTitle "playchess.com"]
[Source "ChessBase"]
[SourceQuality "1"]
[TimeControl "40/5400+30:1800+30"]

1. d4 {[%emt 0:00:04]} d5 {[%emt 0:00:36]} 2. Nf3 {[%emt 0:00:09]} Nf6 {[%emt 0:00:59]} 3. e3 {[%emt 0:00:18]} Bf5 {[%emt 0:04:34]} 4. c4 {[%emt 0:02:05]} c6 {[%emt 0:06:07]} 5. Nc3 {[%emt 0:00:27]} e6 {[%emt 0:00:53]} 6. Bd3 {[%emt 0:01:25]} Bxd3 {[%emt 0:05:58]} 7. Qxd3 {[%emt 0:00:12]} Nbd7 {[%emt 0:02:08]} 8. O-O {[%emt 0:00:38]} Be7 {[%emt 0:01:45]} 9. b3 {[%emt 0:00:32]} O-O {[%emt 0:01:02]} 10. Bb2 {[%emt 0:00:34]} h6 {[%emt 0:01:46]} 11. Rfe1 {[%emt 0:02:47]} Re8 {[%emt 0:24:25]} 12. Rad1 {[%emt 0:03:15]} Qa5 {[%emt 0:03:00]} 13. Ra1 {[%emt 0:06:04]} Rad8 {[%emt 0:06:03]} 14. c5 {[%emt 0:02:30]} b6 {[%emt 0:05:02]} 15. cxb6 {[%emt 0:02:46]} axb6 {[%emt 0:01:45]} 16. Rec1 {[%emt 0:00:43]} c5 {[%emt 0:05:47]} 17. Qb5 {[%emt 0:02:10]} Ra8 {[%emt 0:03:36]} 18. a4 {[%emt 0:00:52]} Rec8 {[%emt 0:05:04]} 19. Qxa5 {[%emt 0:04:14]} 1/2-1/2

[Event "DFMM-LV 2023"]
[Site "Braunfels"]
[Date "2023.06.09"]
[Round "3.41"]
[White "Wagner, Margarethe"]
[Black "Nguyen, Ha Thanh"]
[Result "1-0"]
[Annotator "TA"]
[ECO "B42"]
[WhiteElo "1831"]
[BlackElo "1968"]
[PlyCount "97"]
[EventDate "2023.06.09"]
[EventType "team-tourn"]
[EventCountry "GER"]
[SourceTitle "playchess.com"]
[Source "ChessBase"]
[SourceQuality "1"]
[TimeControl "40/5400+30:1800+30"]

{[%evp 17,97,41,44,47,50,47,60,-24,-21,0,27,-12,32,3,54,39,50,53,58,70,61,46,85,95,90,43,52,52,63,59,66,64,82,57,67,80,65,66,69,45,58,0,0,-25,0,-44,9,-36,-29,-35,-33,-92,-82,-72,-29,-35,-38,-40,0,-3,-10,0,9,0,367,322,493,482,681,681,635,646,810,819,669,57,60,110,286,193,29997,29998]} 1. e4 {[%emt 0:00:02]} c5 {[%emt 0:00:05]} 2. Nf3 {[%emt 0:00:06]} e6 {[%emt 0:00:18]} 3. d4 {[%emt 0:00:06]} cxd4 {[%emt 0:00:06]} 4. Nxd4 {[%emt 0:00:07]} a6 {[%emt 0:00:13]} 5. Bd3 {[%emt 0:00:12]} Bc5 {[%emt 0:00:59]} 6. Nb3 {[%emt 0:00:10]} Be7 {[%emt 0:00:18]} 7. O-O {[%emt 0:01:17]} d6 {[%emt 0:01:26]} 8. c4 {[%emt 0:01:42]} Nf6 {[%emt 0:01:02]} 9. Nc3 {[%emt 0:01:59]} Nbd7 {[%emt 0:01:41]} 10. Re1 {[%emt 0:03:38] [#] B42: Sicilian: Kan Variation: 5 Bd3.} Ne5 $146 {[%emt 0:07:25]} ({Predecessor:} 10... Qc7 11. Bf4 e5 12. Bg3 O-O 13. Bf1 Re8 14. f3 Bf8 15. Rc1 Qb8 16. Be2 b6 17. Nd2 Ra7 {1-0 Gorin,L (2413)-Ciruk,J (2261) Polanica Zdroj op-A 2000 (8)}) 11. Be2 {[%emt 0:07:28]} Qc7 {[%emt 0:02:11]} 12. Nd2 {[%emt 0:00:07]} (12. Be3 $14) 12... O-O $1 $11 {[%emt 0:02:38]} 13. f4 {[%emt 0:14:20]} Nc6 {[%emt 0:01:32][%cal Ob7b5]} 14. Nf1 {[%emt 1:06:16]} Rb8 {[%emt 0:06:48][%cal Ob7b5]} 15. Kh1 {[%emt 0:00:00]} b6 {[%emt 0:01:32]} (15... b5 $11) 16. Be3 $14 {[%emt 0:00:00]} Bb7 {[%emt 0:01:42]} 17. Rc1 {[%emt 0:00:00]} Nd7 {[%emt 0:01:02]} 18. Bf3 {[%emt 0:00:00]} Qd8 {[%emt 0:01:33]} 19. b3 {[%emt 0:00:00] White is more active.} Kh8 {[%emt 0:03:36]} 20. Qd2 {[%emt 0:00:00]} Nc5 {[%emt 0:10:52]} 21. Bf2 {[%emt 0:00:00]} (21. Red1 $16) 21... Re8 {[%emt 0:14:43]} 22. Rcd1 {[%emt 0:00:00]} Bf8 {[%emt 0:04:53]} 23. Ng3 {[%emt 0:00:00]} Qc7 {[%emt 0:04:15]} 24. Be3 {[%emt 0:00:00]} Ba8 {[%emt 0:03:58]} 25. Qe2 {[%emt 0:00:00]} Red8 {[%emt 0:06:14]} 26. Rb1 {[%emt 0:00:00]} Ne7 {[%emt 0:07:07]} 27. b4 {[%emt 0:00:00]} Nd7 {[%emt 0:00:20][%cal Ob6b5]} 28. Rec1 {[%emt 0:00:00]} Ng6 {[%emt 0:02:50]} 29. Bh5 {[%emt 0:00:00]} ({Better is} 29. Kg1 $14) 29... Nf6 $11 {[%emt 0:04:09]} 30. Bxg6 {[%emt 0:00:00]} fxg6 {[%emt 0:00:27]} 31. Bg1 {[%emt 0:00:00]} Qf7 {[%emt 0:03:53]} (31... d5 $15 32. cxd5 Qxf4) 32. Na4 {[%emt 0:00:00]} b5 {[%emt 0:02:15]} 33. Nb6 {[%emt 0:00:00]} Bc6 {[%emt 0:01:31]} 34. c5 {[%emt 0:01:12]} (34. cxb5 $15 Bxb5 35. Qf3) 34... dxc5 $17 {[%emt 0:01:44]} 35. bxc5 {[%emt 0:00:02]} Nh5 {[%emt 0:00:48]} 36. Nxh5 {[%emt 0:00:49]} gxh5 {[%emt 0:00:01][%cal Bg6h5,Bh5h4][%mdl 32]} 37. Rf1 {[%emt 0:00:08]} Qg6 {[%emt 0:01:22]} 38. f5 $132 {[%emt 0:02:00][%mdl 2048] White is fighting back} exf5 {[%emt 0:00:06]} 39. Rxf5 {[%emt 0:00:15]} h4 {[%emt 0:00:31][%cal Oh4h3]} (39... Re8 $5 40. Rbf1 $8 h6 $11) 40. Rbf1 {[%emt 0:02:10]} Be7 $2 {[%emt 0:00:40][%mdl 8192]} (40... h3 $1 $11 {and Black is okay.} 41. Nd5 (41. gxh3 Qe6 $17) 41... Bd7) 41. Nd5 $18 {[%emt 0:30:58]} Qe6 {[%emt 0:13:37]} (41... Bf8 $142 42. Qf2 h6 43. Qxh4 Kh7) 42. Qg4 {[%emt 0:00:00][%cal Of5f8] [#] Black must now prevent Rf8+!} Bf6 {[%emt 0:08:02]} (42... Bxd5 $2 43. exd5 Qg6 44. Qe4 $18) (42... Bd7 $142 43. Qh5 Bxc5 44. Bxc5 Qg6 45. Qxg6 hxg6) 43. Nxf6 {[%emt 0:00:00]} gxf6 {[%emt 0:00:07]} 44. Qxh4 {[%emt 0:00:00]} Bxe4 {[%emt 0:01:21]} 45. Rxf6 {[%emt 0:00:00]} Qd5 {[%emt 0:05:17]} 46. R1f2 $2 {[%emt 0:00:00]} (46. Rxa6 $2 Bxg2#) (46. R6f3 $18 Kg8 47. Qg3+ Kh8 48. Rf7 Bxg2+ 49. Qxg2 Qxg2+ 50. Kxg2) 46... Rg8 $14 {[%emt 0:00:32][%cal Re4g2]} 47. Qh3 {[%emt 0:00:00] And now Rd6 would win.} (47. Rxa6 $2 Bxg2+ 48. Rxg2 Qxg2#) 47... Qxc5 {[%emt 0:01:48]} (47... Rg5 $16 48. Rxa6 Qxc5) 48. Rf7 {[%emt 0:00:00]} ({Inferior is} 48. Rxa6 Rbd8 49. Qh4 Rxg2 50. Qxe4 (50. Qxd8+ $2 {leads to mate.} Rg8+ {[%mdl 64] Discovered Attack}) (50. Rxg2 Bxg2+ 51. Kxg2 Rg8+ $17 {[%mdl 64] Skewer}) 50... Rxf2 51. Bxf2 Qxf2 52. Qe5+ Kg8 53. Qg5+ (53. Qxb5 $2 Rd1+) 53... Kf7 54. Qh5+ Kg8 55. Qg5+ (55. Qxb5 $2 Rd1+) 55... Kf7 56. Qh5+ Kg8 57. Qg5+ $11 (57. Qxb5 $2 Rd1+)) 48... Qd5 {[%emt 0:00:38] [#] Dodges Qe6} (48... Rbd8 $18) 49. Qc3+ {[%emt 0:00:00] Weighted Error Value: White=0.35/Black=0.60} 1-0